bitfinex-derivatives/quotes_BTCF0:USTF0_20260221
["timestamp","ask_amount","ask_price","bid_price","bid_amount"]
[1771665741371,0.02930002,68266.0,68257.0,0.014654]
[1771665741566,0.04395302,68266.0,68257.0,0.014654]
[1771665741772,0.014653,68265.0,68258.0,0.014654]
[1771665741971,0.02930002,68266.0,68259.0,0.014654]
[1771665742167,0.72859811,68264.0,68255.0,0.00017636]
[1771665742475,0.014654,68261.0,68252.0,0.014655]
[1771665742674,0.74325211,68261.0,68254.0,0.014655]
[1771665742966,0.74325211,68261.0,68249.0,0.014656]
[1771665742967,0.77255213,68261.0,68253.0,0.02931]
[1771665743172,0.77255213,68261.0,68253.0,0.014655]
[1771665743573,0.00011169,68260.0,68253.0,0.014655]
[1771665743770,0.00011169,68260.0,68254.0,0.014655]
[1771665744172,0.00011169,68260.0,68252.0,0.014655]
[1771665744369,0.73783211,68256.0,68231.0,0.0007328]
[1771665744576,0.014655,68255.0,68247.0,0.014656]
[1771665744874,0.73219252,68251.0,68232.0,0.14650726]
[1771665745077,0.71753652,68251.0,68244.0,0.014657]
[1771665745379,0.71753652,68251.0,68242.0,0.014657]
[1771665745579,0.02930002,68250.0,68242.0,0.014657]
[1771665745765,0.02930002,68250.0,68237.0,0.014659]
[1771665745766,0.02930002,68250.0,68243.0,0.014657]
[1771665746077,0.7469879,68250.0,68242.0,0.014658]
[1771665746278,0.7469879,68250.0,68233.0,0.01466]
[1771665746580,0.7469879,68250.0,68243.0,0.014657]
[1771665747084,0.014657,68248.0,68240.0,0.014658]
[1771665747283,0.73254405,68249.0,68238.0,0.014658]
[1771665747476,0.73254405,68249.0,68241.0,0.014658]
[1771665747674,0.71788805,68249.0,68243.0,0.014657]
[1771665747868,0.71788805,68249.0,68242.0,0.014658]
[1771665748074,0.71788805,68249.0,68243.0,0.014657]
[1771665748475,0.71788805,68249.0,68241.0,0.014658]
[1771665748780,0.71788805,68249.0,68239.0,0.014658]
[1771665748978,0.014657,68246.0,68238.0,0.014658]
[1771665749177,0.72994779,68246.0,68233.0,0.01466]
[1771665749378,0.014658,68243.0,68234.0,0.014659]
[1771665749580,0.01479744,68242.0,68235.0,0.014659]
[1771665749879,0.01479744,68242.0,68233.0,0.01466]
[1771665749880,0.73021458,68241.0,68233.0,0.014659]
[1771665750081,0.73021458,68241.0,68218.0,0.9794713]
[1771665750082,0.71555658,68237.0,68218.0,0.1241368]
[1771665750383,0.014659,68235.0,68218.0,0.014663]
[1771665750585,0.014659,68235.0,68227.0,0.014661]
[1771665750785,0.04395902,68234.0,68226.0,0.014661]
[1771665751488,0.01466,68232.0,68224.0,0.014661]
[1771665751685,0.01466,68232.0,68222.0,0.014662]
[1771665751686,0.75408278,68231.0,68223.0,0.014662]
[1771665751982,0.72478276,68231.0,68217.0,0.014663]
[1771665752213,0.01466,68234.0,68201.0,0.014666]
[1771665752214,0.71027008,68222.0,68201.0,0.014666]
[1771665752400,0.71027008,68222.0,68215.0,0.014663]
[1771665752699,0.00011459,68230.0,68215.0,0.014663]
[1771665752700,0.65571428,68230.0,68218.0,0.014663]
[1771665752894,0.01466,68232.0,68221.0,0.014662]
[1771665753095,0.01466,68230.0,68222.0,0.014662]
[1771665753292,0.01466,68231.0,68221.0,0.014662]
[1771665753501,0.65559969,68228.0,68197.0,0.24999341]
[1771665753695,0.014664,68214.0,68203.0,0.014666]
[1771665753892,0.014663,68219.0,68207.0,0.014665]
[1771665754098,0.14545578,68218.0,68209.0,0.014665]
[1771665754603,0.14545578,68217.0,68209.0,0.014665]
[1771665754907,0.014662,68222.0,68213.0,0.014664]
[1771665755099,0.05693838,68221.0,68210.0,0.014664]
[1771665755299,0.014662,68220.0,68211.0,0.014664]
[1771665755597,0.05693838,68223.0,68213.0,0.014664]
[1771665755799,0.05693838,68222.0,68212.0,0.014664]
[1771665756098,0.65559969,68227.0,68218.0,0.014663]
[1771665756300,0.014662,68224.0,68214.0,0.014664]
[1771665756606,0.65559969,68226.0,68215.0,0.014663]
[1771665757002,0.65559969,68226.0,68212.0,0.014664]
[1771665757003,0.014662,68224.0,68212.0,0.014664]
[1771665757203,0.67026069,68226.0,68215.0,0.014663]
[1771665757406,0.014661,68225.0,68216.0,0.014663]
[1771665757997,0.014662,68224.0,68213.0,0.014664]
[1771665758794,0.74579437,68224.0,68213.0,0.014664]
[1771665758995,0.014662,68222.0,68210.0,0.014664]
[1771665759201,0.014663,68219.0,68210.0,0.014664]
[1771665759406,0.014663,68218.0,68207.0,0.014665]
[1771665759607,0.014662,68220.0,68211.0,0.014664]
[1771665760306,0.74579537,68218.0,68209.0,0.014665]
[1771665760711,0.74579537,68218.0,68210.0,0.014664]
[1771665761211,0.74579537,68218.0,68209.0,0.014665]
[1771665761611,0.74579537,68218.0,68210.0,0.014664]
[1771665761612,0.73113237,68218.0,68210.0,0.014664]
[1771665762206,0.73113237,68218.0,68209.0,0.014665]
[1771665762207,0.74579537,68218.0,68209.0,0.014665]
[1771665762611,0.14512102,68210.0,68209.0,0.014665]
[1771665762813,0.74579537,68218.0,68209.0,0.014665]
[1771665763413,0.74579537,68216.0,68208.0,0.014665]
[1771665763616,0.73113237,68216.0,68209.0,0.014665]
[1771665763912,0.73113237,68215.0,68207.0,0.014665]
[1771665764105,0.73113237,68215.0,68208.0,0.014665]
[1771665765014,0.73113237,68215.0,68207.0,0.014665]
[1771665765810,0.73113237,68215.0,68203.0,0.014666]
[1771665766011,0.73113237,68213.0,68206.0,0.014665]
[1771665766215,0.73113237,68213.0,68198.0,0.014667]
[1771665766516,0.73113237,68213.0,68207.0,0.014665]
[1771665766717,0.14518847,68215.0,68211.0,0.014664]
[1771665767109,0.14518847,68214.0,68211.0,0.014664]
[1771665767311,0.14518847,68214.0,68203.0,0.014666]
[1771665767312,0.73113237,68222.0,68217.0,0.014663]
[1771665767616,0.014662,68221.0,68210.0,0.014664]
[1771665767819,0.014662,68221.0,68212.0,0.014664]
[1771665768114,0.014662,68221.0,68213.0,0.014664]
[1771665768313,0.014662,68222.0,68214.0,0.014664]
[1771665768518,0.74579537,68220.0,68211.0,0.014664]
[1771665768717,0.73113237,68218.0,68208.0,0.014665]
[1771665768909,0.014662,68221.0,68212.0,0.014664]
[1771665769217,0.014662,68220.0,68212.0,0.014664]
[1771665769919,0.014662,68220.0,68213.0,0.0916927]
[1771665770118,0.014662,68220.0,68214.0,0.0916927]
[1771665770421,0.014662,68220.0,68212.0,0.014664]
[1771665770619,0.014662,68220.0,68213.0,0.09135739]
[1771665770912,0.014662,68220.0,68211.0,0.014664]
[1771665771120,0.014662,68220.0,68212.0,0.10602123]
[1771665771314,0.014662,68220.0,68211.0,0.014664]
[1771665771315,0.014662,68223.0,68213.0,0.09135723]
[1771665771515,0.014662,68223.0,68214.0,0.014663]
[1771665772118,0.014662,68224.0,68216.0,0.014663]
[1771665772316,0.73113237,68225.0,68217.0,0.014663]
[1771665772621,0.74579337,68225.0,68216.0,0.014663]
[1771665773521,0.014663,68218.0,68200.0,0.39453045]
[1771665773715,0.014663,68218.0,68209.0,0.014665]
[1771665773912,0.014663,68217.0,68210.0,0.07546987]
[1771665774222,0.014663,68217.0,68211.0,0.07552342]
[1771665774420,0.014663,68217.0,68209.0,0.014665]
[1771665774622,0.014663,68218.0,68209.0,0.014665]
[1771665774820,0.014663,68217.0,68209.0,0.014665]
[1771665776123,0.029326,68217.0,68209.0,0.014665]
[1771665776414,0.014663,68218.0,68209.0,0.014665]
[1771665776620,0.74579537,68220.0,68211.0,0.014664]
[1771665776821,0.014663,68219.0,68211.0,0.014664]
[1771665777213,0.70180537,68220.0,68213.0,0.014664]
[1771665778320,0.71646737,68220.0,68212.0,0.014664]
[1771665778816,0.73113237,68218.0,68190.0,0.4019312]
[1771665779017,0.014663,68217.0,68208.0,0.014665]
[1771665779421,0.014663,68217.0,68209.0,0.014665]
[1771665780320,0.73113237,68218.0,68208.0,0.014665]
[1771665780321,0.24814962,68216.0,68208.0,0.014665]
[1771665780623,0.014664,68214.0,68202.0,0.014666]
[1771665780828,0.014664,68214.0,68205.0,0.014665]
[1771665781016,0.74579537,68216.0,68205.0,0.014665]
[1771665781017,0.014663,68215.0,68207.0,0.014665]
[1771665781218,0.23349589,68214.0,68207.0,0.014665]
[1771665781525,0.23349589,68213.0,68203.0,0.014666]
[1771665781712,0.74579637,68214.0,68205.0,0.014665]
[1771665781914,0.97942188,68213.0,68204.0,0.014666]
[1771665782114,0.74579637,68213.0,68204.0,0.014666]
[1771665782322,0.73113237,68210.0,68184.0,0.58676]
[1771665782525,0.014663,68217.0,68206.0,0.014665]
[1771665782526,0.014663,68215.0,68206.0,0.014665]
[1771665782830,0.23361708,68214.0,68207.0,0.014665]
[1771665783127,0.23361708,68213.0,68208.0,0.014665]
[1771665783317,0.73113237,68217.0,68198.0,0.014667]
[1771665783318,0.23361708,68212.0,68207.0,0.014665]
[1771665783521,0.23361708,68211.0,68205.0,0.014665]
[1771665783731,0.23361708,68210.0,68205.0,0.014665]
[1771665784030,0.014664,68214.0,68205.0,0.014665]
[1771665784220,0.2336856,68213.0,68205.0,0.014665]
[1771665784421,0.2336856,68212.0,68205.0,0.014665]
[1771665784623,0.2336856,68211.0,68205.0,0.014665]
[1771665784827,0.2336856,68210.0,68205.0,0.014665]
[1771665785026,0.014664,68214.0,68205.0,0.014665]
[1771665785325,0.23366776,68213.0,68205.0,0.014665]
[1771665785525,0.23366776,68212.0,68205.0,0.014665]
[1771665785719,0.23366776,68211.0,68205.0,0.014665]
[1771665786021,0.23366776,68210.0,68205.0,0.014665]
[1771665786217,0.014664,68214.0,68205.0,0.014665]
[1771665786413,0.23365038,68213.0,68205.0,0.014665]
[1771665786627,0.23365038,68212.0,68205.0,0.014665]
[1771665786829,0.23365038,68211.0,68205.0,0.014665]
[1771665787126,0.014664,68214.0,68205.0,0.014665]
[1771665787325,0.23364071,68213.0,68205.0,0.014665]
[1771665787627,0.23364071,68212.0,68205.0,0.02933]
[1771665787922,0.23364071,68211.0,68205.0,0.02933]
[1771665788125,0.014664,68214.0,68205.0,0.02933]
[1771665788326,0.23363322,68213.0,68205.0,0.02933]
[1771665788630,0.23363322,68212.0,68205.0,0.014665]
[1771665788820,0.23363322,68211.0,68205.0,0.014665]
[1771665789127,0.014664,68214.0,68205.0,0.014665]
[1771665789326,0.23362784,68213.0,68205.0,0.014665]
[1771665789627,0.23362784,68212.0,68205.0,0.014665]
[1771665789824,0.23362784,68211.0,68205.0,0.014665]
[1771665790027,0.014664,68214.0,68205.0,0.014665]
[1771665790228,0.2336219,68213.0,68205.0,0.014665]
[1771665790526,0.2336219,68212.0,68205.0,0.02933]
[1771665790724,0.2336219,68211.0,68205.0,0.02933]
[1771665790927,0.014664,68214.0,68205.0,0.02933]
[1771665791126,0.23361767,68213.0,68205.0,0.02933]
[1771665791328,0.23361767,68212.0,68205.0,0.02933]
[1771665791521,0.23361767,68211.0,68205.0,0.02933]
[1771665791724,0.014664,68214.0,68205.0,0.02933]
[1771665791922,0.23361193,68213.0,68206.0,0.014665]
[1771665792124,0.23361193,68212.0,68206.0,0.014665]
[1771665792426,0.014664,68214.0,68206.0,0.014665]
[1771665792626,0.23360729,68213.0,68206.0,0.014665]
[1771665792822,0.23360729,68212.0,68206.0,0.014665]
[1771665793029,0.014664,68214.0,68205.0,0.014666]
[1771665793227,0.014664,68214.0,68204.0,0.014666]
[1771665793228,0.23360729,68213.0,68206.0,0.014665]
[1771665793438,0.23360729,68212.0,68206.0,0.014665]
[1771665793621,0.014664,68214.0,68206.0,0.014665]
[1771665793824,0.23360238,68213.0,68206.0,0.014665]
[1771665794022,0.23360238,68212.0,68206.0,0.014665]
[1771665794330,0.014664,68214.0,68206.0,0.014665]
[1771665794530,0.23359806,68213.0,68206.0,0.014665]
[1771665794724,0.23359806,68212.0,68206.0,0.014665]
[1771665794924,0.74751558,68214.0,68205.0,0.014665]
[1771665795233,0.73285158,68212.0,68198.0,0.135767]
[1771665795437,0.73285158,68210.0,68202.0,0.014666]
[1771665795824,0.73285158,68209.0,68198.0,0.1211]
[1771665796224,0.73285158,68209.0,68201.0,0.014666]
[1771665796424,0.73285158,68209.0,68202.0,0.014666]
[1771665797426,0.74751658,68208.0,68199.0,0.014667]
[1771665797827,0.73285158,68208.0,68200.0,0.014667]
[1771665799033,0.73285158,68208.0,68201.0,0.014666]
[1771665800234,0.73285158,68208.0,68202.0,0.014666]
[1771665800832,0.73285158,68208.0,68197.0,0.014667]
[1771665801028,0.73285158,68208.0,68202.0,0.014666]
[1771665801930,0.73285158,68208.0,68201.0,0.014666]
[1771665802137,0.73285158,68208.0,68196.0,0.00011125]
[1771665802437,0.014665,68210.0,68192.0,0.1211]
[1771665802438,0.73285158,68203.0,68192.0,0.1211]
[1771665802640,0.73285158,68203.0,68193.0,0.014668]
[1771665802830,0.73285158,68203.0,68194.0,0.014668]
[1771665803339,0.0001131,68202.0,68196.0,0.014667]
[1771665803538,0.49645384,68212.0,68191.0,0.73297668]
[1771665803728,0.23909134,68211.0,68205.0,0.014666]
[1771665803934,0.014665,68209.0,68198.0,0.014667]
[1771665804140,0.23909134,68208.0,68200.0,0.014667]
[1771665804442,0.23909134,68207.0,68201.0,0.014666]
[1771665804641,0.014665,68210.0,68201.0,0.014666]
[1771665804843,0.23908497,68209.0,68201.0,0.014666]
[1771665805037,0.23908497,68208.0,68201.0,0.014666]
[1771665805342,0.23908497,68207.0,68200.0,0.014667]
[1771665805538,0.014665,68209.0,68200.0,0.014667]
[1771665805740,0.23785498,68208.0,68200.0,0.014667]
[1771665805937,0.23785498,68207.0,68200.0,0.014667]
[1771665806138,0.014665,68210.0,68201.0,0.014666]
[1771665806442,0.23785498,68209.0,68201.0,0.014666]
[1771665806640,9.8e-07,68208.0,68207.0,0.014665]
[1771665806842,0.05,68214.0,68208.0,0.014665]
[1771665807245,0.05,68214.0,68207.0,0.014665]
[1771665807744,0.05,68214.0,68206.0,0.014665]
[1771665809444,0.05,68214.0,68206.0,0.02933]
[1771665809646,0.05,68214.0,68207.0,0.014665]
[1771665810244,0.05,68214.0,68205.0,0.014665]
[1771665810245,0.52395141,68222.0,68213.0,0.014664]
[1771665810445,0.43906348,68230.0,68214.0,0.014664]
[1771665810446,0.014662,68223.0,68214.0,0.014664]
[1771665810740,0.014662,68223.0,68215.0,0.014663]
[1771665810947,0.01466,68229.0,68220.0,0.014662]
[1771665811146,0.014661,68228.0,68220.0,0.014662]
[1771665811644,0.014661,68228.0,68217.0,0.014663]
[1771665811844,0.01466,68229.0,68220.0,0.014662]
[1771665812047,0.014661,68228.0,68220.0,0.014662]
[1771665812635,0.52873312,68230.0,68222.0,0.014662]
[1771665812841,0.54339312,68230.0,68222.0,0.014662]
[1771665813041,0.54339312,68230.0,68224.0,0.00084]
[1771665813340,0.54339312,68230.0,68223.0,0.014662]
[1771665813945,0.014659,68237.0,68225.0,0.014661]
[1771665814145,0.014659,68235.0,68227.0,0.014661]
[1771665814346,0.014659,68235.0,68228.0,0.014661]
[1771665814646,0.014659,68237.0,68229.0,0.01466]
[1771665814843,0.029318,68238.0,68230.0,0.01466]
[1771665815144,0.029318,68238.0,68232.0,0.01466]
[1771665815145,0.014659,68238.0,68232.0,0.01466]
[1771665815347,0.014658,68240.0,68234.0,0.014659]
[1771665815542,0.029316,68240.0,68234.0,0.014659]
[1771665815847,0.014658,68240.0,68234.0,0.014659]
[1771665816539,0.014658,68239.0,68234.0,0.014659]
[1771665816941,0.014658,68240.0,68235.0,0.014659]
[1771665817141,0.014658,68241.0,68235.0,0.014659]
[1771665817341,0.014658,68240.0,68234.0,0.014659]
[1771665817548,0.014658,68241.0,68235.0,0.014659]
[1771665817938,0.014658,68242.0,68236.0,0.014659]
[1771665818145,0.53140629,68246.0,68237.0,0.014659]
[1771665818448,0.014656,68249.0,68243.0,0.014657]
[1771665818642,0.46948,68267.0,68241.0,0.014658]
[1771665818643,0.53379218,68261.0,68245.0,0.014657]
[1771665818845,0.014655,68254.0,68245.0,0.014657]
[1771665819045,0.014656,68252.0,68248.0,0.00088]
[1771665819243,0.014656,68251.0,68243.0,0.014657]
[1771665819448,0.014656,68252.0,68242.0,0.014658]
[1771665819650,0.014656,68250.0,68242.0,0.014658]
[1771665819944,0.014658,68239.0,68230.0,0.01466]
[1771665820146,0.014658,68241.0,68232.0,0.01466]
[1771665820340,0.014658,68240.0,68232.0,0.01466]
[1771665820540,0.53529176,68250.0,68230.0,0.01466]
[1771665820541,0.014658,68238.0,68230.0,0.01466]
[1771665820740,0.014658,68239.0,68230.0,0.01466]
[1771665820942,0.53345619,68247.0,68228.0,0.014661]
[1771665821143,0.014659,68237.0,68228.0,0.014661]
[1771665821747,0.014658,68239.0,68229.0,0.01466]
[1771665822047,0.014658,68239.0,68233.0,0.0008]
[1771665822352,0.014658,68239.0,68229.0,0.01466]
[1771665822548,0.014658,68239.0,68230.0,0.01466]
[1771665822750,0.014658,68240.0,68230.0,0.01466]
[1771665823344,0.014658,68239.0,68230.0,0.01466]
[1771665825259,0.014658,68242.0,68228.0,0.01466]
[1771665825445,0.014658,68241.0,68229.0,0.01466]
[1771665826248,0.014658,68241.0,68231.0,0.01466]
[1771665826448,0.014657,68244.0,68231.0,0.01466]
[1771665826449,0.014658,68242.0,68231.0,0.01466]
[1771665827254,0.014658,68242.0,68232.0,0.01466]
[1771665827653,0.014658,68242.0,68231.0,0.01466]
[1771665827961,0.014659,68237.0,68227.0,0.014661]
[1771665828150,0.014659,68238.0,68227.0,0.014661]
[1771665828350,0.014658,68241.0,68225.0,0.014661]
[1771665828552,0.014658,68241.0,68231.0,0.01466]
[1771665828753,0.014658,68240.0,68231.0,0.01466]
[1771665830964,0.014658,68239.0,68229.0,0.02932]
[1771665831155,0.014658,68239.0,68230.0,0.01466]
[1771665831459,0.014659,68238.0,68229.0,0.01466]
[1771665833155,0.014658,68240.0,68215.0,0.1211]
[1771665833350,0.014658,68240.0,68225.0,0.014661]
[1771665833351,0.014659,68234.0,68225.0,0.014661]
[1771665833959,0.014659,68235.0,68226.0,0.014661]
[1771665834958,0.01466,68234.0,68225.0,0.014661]
[1771665835355,0.01466,68234.0,68222.0,0.014662]
[1771665835562,0.014659,68237.0,68227.0,0.014661]
[1771665835955,0.014659,68236.0,68227.0,0.014661]
[1771665836155,0.01466,68233.0,68223.0,0.014662]
[1771665836448,0.01466,68232.0,68221.0,0.014662]
[1771665836655,0.01466,68232.0,68223.0,0.014662]
[1771665839259,0.01466,68232.0,68221.0,0.014662]
[1771665839458,0.01466,68231.0,68221.0,0.014662]
[1771665839660,0.014661,68228.0,68214.0,0.014664]
[1771665839967,0.01466,68230.0,68218.0,0.014663]
[1771665840166,0.014661,68227.0,68218.0,0.014663]
[1771665840765,0.014661,68226.0,68217.0,0.014663]
[1771665841470,0.014661,68228.0,68215.0,0.014663]
[1771665841769,0.014662,68224.0,68215.0,0.014663]
[1771665841965,0.014661,68225.0,68213.0,0.00018857]
[1771665842469,0.014661,68225.0,68216.0,0.029326]
[1771665842666,0.014661,68229.0,68218.0,0.014663]
[1771665842863,0.21257584,68228.0,68221.0,0.014662]
[1771665843056,0.21257584,68227.0,68222.0,0.00084]
[1771665843261,0.01466,68230.0,68221.0,0.014662]
[1771665843262,0.21257584,68226.0,68221.0,0.014662]
[1771665843463,0.01466,68233.0,68224.0,0.014661]
[1771665843662,0.21256946,68232.0,68225.0,0.014661]
[1771665843862,0.21256946,68231.0,68222.0,0.014662]
[1771665844171,0.21256946,68230.0,68227.0,0.014661]
[1771665844363,0.21256946,68229.0,68227.0,0.014661]
[1771665844564,0.21256946,68228.0,68227.0,0.014661]
[1771665844762,0.01078688,68228.0,68227.0,0.014661]
[1771665845361,0.014658,68242.0,68226.0,0.014661]
[1771665845565,0.014659,68237.0,68230.0,0.01466]
[1771665845766,0.014659,68238.0,68231.0,0.01466]
[1771665846172,0.029318,68238.0,68231.0,0.01466]
[1771665846368,0.014659,68237.0,68231.0,0.01466]
[1771665846663,0.014659,68236.0,68231.0,0.01466]
[1771665846865,0.029318,68236.0,68230.0,0.01466]
[1771665847268,0.014659,68235.0,68230.0,0.01466]
[1771665847466,0.014658,68240.0,68230.0,0.01466]
[1771665847681,0.029318,68238.0,68232.0,0.01466]
[1771665848170,0.014659,68237.0,68232.0,0.01466]
[1771665848363,0.014659,68238.0,68233.0,0.014659]
[1771665848671,0.014659,68238.0,68229.0,0.01466]
[1771665849168,0.014658,68239.0,68230.0,0.01466]
[1771665849367,0.014659,68238.0,68230.0,0.01466]
[1771665849664,0.014658,68239.0,68230.0,0.01466]
[1771665849869,0.46529195,68247.0,68230.0,0.01466]
[1771665850065,0.46529195,68247.0,68225.0,0.014661]
[1771665850066,0.014659,68236.0,68229.0,0.01466]
[1771665850271,0.014659,68236.0,68228.0,0.014661]
[1771665850574,0.014659,68237.0,68229.0,0.01466]
[1771665850957,0.014659,68236.0,68228.0,0.014661]
[1771665851156,0.014659,68236.0,68227.0,0.014661]
[1771665851372,0.014659,68235.0,68227.0,0.014661]
[1771665852068,0.014659,68235.0,68229.0,0.0008]
[1771665852371,0.014659,68235.0,68227.0,0.014661]
[1771665852769,0.014659,68236.0,68228.0,0.014661]
[1771665853070,0.014659,68236.0,68223.0,0.014662]
[1771665853071,0.014658,68240.0,68231.0,0.01466]
[1771665853464,0.014658,68241.0,68232.0,0.01466]
[1771665853773,0.014657,68243.0,68234.0,0.014659]
[1771665854158,0.014658,68242.0,68234.0,0.014659]
[1771665854362,0.014658,68242.0,68232.0,0.01466]
[1771665854363,0.014658,68243.0,68233.0,0.014659]
[1771665854762,0.014658,68242.0,68233.0,0.014659]
[1771665855167,0.014658,68241.0,68232.0,0.01466]
[1771665855373,0.014657,68245.0,68235.0,0.014659]
[1771665855970,0.014657,68245.0,68236.0,0.014659]
[1771665856375,0.014657,68247.0,68239.0,0.014658]
[1771665856777,0.014657,68246.0,68239.0,0.014658]
[1771665857373,0.014657,68247.0,68241.0,0.014658]
[1771665857574,0.22095226,68246.0,68239.0,0.029316]
[1771665857772,0.20629526,68245.0,68239.0,0.029316]
[1771665857965,0.014657,68246.0,68239.0,0.029316]
[1771665858167,0.014657,68246.0,68239.0,0.014658]
[1771665858576,0.014657,68245.0,68237.0,0.014659]
[1771665858774,0.014657,68244.0,68237.0,0.014659]
[1771665859075,0.014657,68245.0,68238.0,0.014658]
[1771665859972,0.014657,68244.0,68236.0,0.029318]
[1771665860170,0.014657,68244.0,68206.0,0.46932]
[1771665860171,0.4613706,68248.0,68219.0,0.77307487]
[1771665860370,0.014658,68239.0,68232.0,0.01466]
[1771665860673,0.22089676,68247.0,68231.0,0.01466]
[1771665860674,0.014658,68240.0,68231.0,0.01466]
[1771665860980,0.014657,68243.0,68229.0,0.01466]
[1771665861278,0.014658,68238.0,68231.0,0.01466]
[1771665861876,0.014659,68238.0,68230.0,0.01466]
[1771665862067,0.014659,68237.0,68230.0,0.01466]
[1771665862270,0.014659,68237.0,68227.0,0.014661]
[1771665863476,0.014659,68236.0,68228.0,0.014661]
[1771665863974,0.014657,68243.0,68230.0,0.01466]
[1771665864168,0.029316,68241.0,68232.0,0.01466]
[1771665864367,0.029316,68241.0,68227.0,0.014661]
[1771665864368,0.014658,68239.0,68231.0,0.01466]
[1771665864576,0.014658,68239.0,68230.0,0.01466]
[1771665864767,0.014658,68239.0,68230.0,0.02932]
[1771665865269,0.014658,68239.0,68231.0,0.01466]
[1771665865471,0.014658,68240.0,68232.0,0.01466]
[1771665865664,0.20409386,68239.0,68232.0,0.01466]
[1771665865868,0.014658,68240.0,68232.0,0.01466]
[1771665866067,0.20409386,68239.0,68232.0,0.01466]
[1771665866276,0.014658,68240.0,68231.0,0.01466]
[1771665866470,0.20409128,68239.0,68231.0,0.01466]
[1771665866669,0.014657,68244.0,68232.0,0.02932]
[1771665866869,0.21874828,68243.0,68229.0,0.07199256]
[1771665867068,0.21874828,68243.0,68233.0,0.014659]
[1771665867069,0.014658,68241.0,68233.0,0.014659]
[1771665867268,0.014657,68243.0,68233.0,0.014659]
[1771665867469,0.21873362,68242.0,68234.0,0.014659]
[1771665867673,0.20407562,68241.0,68234.0,0.014659]
[1771665869069,0.20407562,68241.0,68235.0,0.014659]
[1771665869272,0.014657,68244.0,68236.0,0.014659]
[1771665869470,0.20407121,68243.0,68236.0,0.014659]
[1771665869677,0.20407121,68242.0,68236.0,0.014659]
[1771665869972,0.20407121,68241.0,68236.0,0.014659]
[1771665870174,0.014657,68244.0,68236.0,0.014659]
[1771665870374,0.20407121,68243.0,68240.0,0.014658]
[1771665870574,0.20407121,68242.0,68240.0,0.014658]
[1771665870771,0.014657,68247.0,68240.0,0.014658]
[1771665870968,0.20407196,68246.0,68240.0,0.014658]
[1771665871169,0.20407196,68245.0,68240.0,0.014658]
[1771665871375,0.20407196,68244.0,68239.0,0.014658]
[1771665871570,0.20407196,68243.0,68239.0,0.014658]
[1771665871775,0.20407196,68242.0,68239.0,0.014658]
[1771665871974,0.014657,68246.0,68239.0,0.014658]
[1771665872172,0.20410264,68245.0,68239.0,0.014658]
[1771665872377,0.20410264,68244.0,68239.0,0.014658]
[1771665872677,0.20410264,68243.0,68239.0,0.014658]
[1771665872877,0.014657,68247.0,68239.0,0.014658]
[1771665873079,0.20413871,68246.0,68239.0,0.014658]
[1771665873281,0.20413871,68245.0,68239.0,0.014658]
[1771665873478,0.20413871,68244.0,68239.0,0.014658]
[1771665873680,0.20413871,68243.0,68239.0,0.014658]
[1771665873879,0.014655,68253.0,68241.0,0.014658]
[1771665874081,0.20417745,68252.0,68242.0,0.014658]
[1771665874282,0.20417745,68251.0,68244.0,0.014657]
[1771665874476,0.20417745,68250.0,68244.0,0.029314]
[1771665874676,0.20417745,68249.0,68244.0,0.014657]
[1771665874985,0.17485745,68248.0,68241.0,0.014658]
[1771665878276,0.014656,68249.0,68241.0,0.014658]
[1771665878482,0.014656,68249.0,68242.0,0.014658]
[1771665878682,0.014656,68249.0,68241.0,0.014658]
[1771665878683,0.014656,68249.0,68243.0,0.014657]
[1771665880286,0.014656,68249.0,68243.0,0.029314]
[1771665880587,0.014656,68249.0,68243.0,0.014657]
[1771665881685,0.014656,68249.0,68243.0,0.029314]
[1771665882890,0.014657,68247.0,68240.0,0.014658]
[1771665883089,0.014657,68247.0,68241.0,0.014658]
[1771665884086,0.029314,68247.0,68241.0,0.014658]
[1771665884287,0.029314,68247.0,68240.0,0.014658]
[1771665884488,0.014657,68247.0,68240.0,0.014658]
[1771665884888,0.014657,68247.0,68240.0,0.029316]
[1771665885085,0.014657,68247.0,68240.0,0.014658]
[1771665885990,0.029314,68247.0,68240.0,0.014658]
[1771665886186,0.014657,68246.0,68239.0,0.014658]
[1771665886892,0.20261965,68245.0,68239.0,0.014658]
[1771665887083,0.20261965,68244.0,68238.0,0.17878789]
[1771665887290,0.20261965,68243.0,68238.0,0.014658]
[1771665887489,0.20261965,68242.0,68238.0,0.014658]
[1771665887787,0.20261965,68241.0,68237.0,0.014659]
[1771665887981,0.014657,68245.0,68237.0,0.014659]
[1771665889388,0.014657,68247.0,68224.0,0.1211]
[1771665889389,0.014658,68240.0,68231.0,0.01466]
[1771665890691,0.014658,68241.0,68232.0,0.01466]
[1771665890894,0.014658,68241.0,68233.0,0.01466]
[1771665891290,0.014655,68254.0,68243.0,0.014657]
[1771665891792,0.014655,68254.0,68244.0,0.014657]
[1771665892193,0.014655,68254.0,68244.0,0.19344489]
[1771665892384,0.014654,68258.0,68246.0,0.014657]
[1771665892591,0.014654,68259.0,68250.0,0.014656]
[1771665893184,0.014654,68259.0,68251.0,0.014656]
[1771665893486,0.014654,68259.0,68253.0,0.014655]
[1771665893892,0.43906348,68275.0,68248.0,0.17878789]
[1771665893893,0.8762022,68277.0,68249.0,0.7973911]
[1771665894094,0.01538127,68281.0,68274.0,0.014651]
[1771665894598,0.01538127,68281.0,68272.0,0.014651]
[1771665894599,0.01465,68280.0,68273.0,0.014651]
[1771665894783,0.01465,68280.0,68274.0,0.014651]
[1771665895594,0.0293,68280.0,68274.0,0.014651]
[1771665895800,0.01465,68280.0,68275.0,0.01465]
[1771665896097,0.00073227,68281.0,68274.0,0.014651]
[1771665896295,0.00073227,68281.0,68275.0,0.014651]
[1771665896695,0.00073227,68281.0,68276.0,0.01465]
[1771665896897,0.014648,68287.0,68270.0,0.17878789]